{"text_format":"1","workbook":"xlsx","n_sheets":1,"sheets":["Hoja1"],"not_rendered":{"charts":0,"images":0,"macros":1,"external_links":0,"defined_names":0,"comments":0,"pivot_tables":0},"unopened":[],"bounds":{"document_bytes":16777216,"sheet_cells":100000,"rows_first":2000,"rows_last":500,"rows_between":2000,"halvings":0,"cell_chars":16384,"cell_head_chars":4096},"cells_cut":0,"cells_raw":0,"read":"whole","date_system":"1900"}

{"sheet":"Hoja1","index":0,"n_rows":29,"n_cols":53,"rows_kept":29,"cut":false,"hidden":false,"merged":[[0,49,0,52],[2,46,2,47],[0,38,0,47],[2,40,2,41],[1,40,1,43],[2,42,2,43],[2,44,2,45],[1,44,1,47],[1,49,2,50],[1,38,2,39],[2,22,2,23],[1,31,1,34],[1,35,1,36],[1,51,2,51],[1,52,2,52],[2,31,2,32],[2,33,2,34],[2,35,2,36],[1,29,2,30],[2,26,2,27],[0,1,0,14],[1,3,1,14],[0,16,0,27],[1,18,1,27],[0,29,0,36],[1,16,2,17],[1,1,2,2],[2,11,2,12],[2,18,2,19],[2,3,2,4],[2,5,2,6],[2,7,2,8],[2,9,2,10],[2,13,2,14],[2,24,2,25],[2,20,2,21]]}
[null,"COMPETENCIA LINGUÍSTICA 6º PRIMARIA (I)",null,null,null,null,null,null,null,null,null,null,null,null,null,null,"COMPETENCIA LINGUÍSTICA 6º PRIMARIA (II)",null,null,null,null,null,null,null,null,null,null,null,null,"COMPETENCIA LINGUÍSTICA 6º PRIMARIA (III)",null,null,null,null,null,null,null,null,"COMPETENCIA LINGUÍSTICA 6º PRIMARIA (IV)",null,null,null,null,null,null,null,null,null,null,"COMPETENCIA LINGUÍSTICA 6º PRIMARIA (V)"]
[null,"6º A",null,"LINGUA CASTELÁ",null,null,null,null,null,null,null,null,null,null,null,null,"6º A",null,"LINGUA GALEGA",null,null,null,null,null,null,null,null,null,null,"6º A",null,"LINGUA ESTRANXEIRA -INGLÉS",null,null,null,"MATEMÁTICAS",null,null,"6º A",null,"CIENCIAS DA NATUREZA",null,null,null,"CIENCIAS SOCIAIS",null,null,null,null,"6º A",null,"NOTA MEDIA","CUALIFICACIÓN"]
[null,null,null,"6º-LCB1.1.1 - Emprega a lingua oral e axusta os rexistros lingüísticos segundo o grao de formalidade e a finalidade (académica, social e lúdica).",null,"6º-LCB1.6.3 - Resume un texto distinguindo ideas principais e secundarias.",null,"6º-LCB2.1.1 - Le en voz alta, con precisión, diferentes tipos de textos apropiados á súa idade con velocidade, fluidez e entoación adecuada.",null,"6º-LCB2.2.2 - Comprende, con certo grado de detalle, diferentes tipos de textos atendendo á forma da mensaxe (...) e a súa intención comunicativa (..).",null,"6º-LCB2.4.4 - Elabora esquemas a partir de textos expositivos.",null,"6º-LCB3.7.1 - Planifica e redacta textos seguindo uns pasos: (…).",null,null,null,null,"6º-LGB1.1.2 - Comprende o significado literal e inferencial dun texto oral, distinguindo a información da opinión.",null,"6º-LGB1.7.1 - Planifica e elabora un discurso oral coherente, sen contradicións nin repeticións innecesarias, utilizando un vocabulario adecuado á súa idade.",null,"6º-LGB2.3.3 - Realiza o resumo dun texto.",null,"6º-LGB2.7.3 - Le textos en voz alta con ritmo, velocidade e ton da voz adecuados.",null,"6º-LGB3.2.3 - Elabora diferentes tipos de textos (narrativos, expositivos, descritivos ou argumentativos) adaptando a linguaxe ás características de cada xénero.",null,null,null,null,"6º-PLEB1.5 - Entende a información esencial en conversas breves e sinxelas nas que participa, que traten sobre temas familiares como, por exemplo, un mesmo, a familia, a escola, o tempo libre, a descrición dun obxecto ou un lugar.",null,"6º-PLEB2.1 - Fai presentacións breves e sinxelas, previamente preparadas e ensaiadas, sobre temas cotiás ou do seu interese (....).",null,"6º-MTB2.9.1 - Resolve problemas que impliquen o dominio dos contidos traballados, empregando estratexias heurísticas, de razoamento (....).",null,null,null,null,"6º-CNB1.1.1 - Busca, selecciona e organiza información concreta e relevante, analízaa, obtén conclusións, elabora informes para o rexistro de plan de traballo e comunica, de forma oral e escrita, as conclusións.",null,"6º-CNB1.1.2 - Expresa oralmente e por escrito, de forma clara e ordenada contidos relacionados coa área manifestando a comprensión de textos orais e/ou escritos.",null,"6º-CSB1.2.2 - Analiza informacións relacionadas coa área e manexa imaxes, táboas, gráficos, esquemas, resumos e as tecnoloxías da información e a comunicación.",null,"6º-CSB1.4.1 - Realiza traballos e presentacións a nivel individual e grupal que supoñen a busca, selección e organización de textos de carácter xeográfico, social e histórico."]
[null,null,"ALUMNO /A","Nota",0.04,"Nota",0.06,"Nota",0.04,"Nota",0.06,"Nota",0.04,"Nota",0.06,null,null,"ALUMNO /A","Nota",0.08,"Nota",0.05,"Nota",0.05,"Nota",0.04,"Nota",0.08,null,null,"ALUMNO /A","Nota",0.1,"Nota",0.1,"Nota",0.05,null,null,"ALUMNO /A","Nota",0.05,null,0.02,"Nota",0.03,null,0.05,null,null,"ALUMNO /A",1]
[null,1,"Abad Rey, Lara",null,{"$f":"D5*0.04","v":0},null,{"$f":"F5*0.06","v":0},null,{"$f":"H5*0.04","v":0},null,{"$f":"J5*0.06","v":0},null,{"$f":"L5*0.04","v":0},null,{"$f":"N5*0.06","v":0},null,1,"Abad Rey, Lara",null,{"$f":"S5*0.08","v":0},null,{"$f":"U5*0.05","v":0},null,{"$f":"W5*0.05","v":0},null,{"$f":"Y5*0.04","v":0},null,{"$f":"AA5*0.08","v":0},null,1,"Abad Rey, Lara",null,{"$f":"AF5*0.1","v":0},null,{"$f":"AH5*0.1","v":0},null,{"$f":"AJ5*0.05","v":0},null,1,null,null,{"$f":"AO5*0.05","v":0},null,{"$f":"AQ5*0.02","v":0},null,{"$f":"AS5*0.03","v":0},null,{"$f":"AU5*0.05","v":0},null,1,null,{"$f":"SUM(AV5,AT5,AR5,AP5,AK5,AI5,AG5,AB5,Z5,X5,V5,T5,O5,M5,K5,I5,G5,E5,)","v":0},{"$f":"IF(AZ5<5,\"INSUFICIENTE\",IF(AZ5<6,\"SUFICIENTE\",IF(AZ5<7,\"BIEN\",IF(AZ5<9,\"NOTABLE\",\"SOBRESALIENTE\"))))","v":"INSUFICIENTE"}]
[null,2,"Cuadrado Dorrio, Ana",null,{"$f":"D6*0.04","v":0},null,{"$f":"F6*0.06","v":0},null,{"$f":"H6*0.04","v":0},null,{"$f":"J6*0.06","v":0},null,{"$f":"L6*0.04","v":0},null,{"$f":"N6*0.06","v":0},null,2,"Cuadrado Dorrio, Ana",null,{"$f":"S6*0.08","v":0},null,{"$f":"U6*0.05","v":0},null,{"$f":"W6*0.05","v":0},null,{"$f":"Y6*0.04","v":0},null,0,null,2,"Cuadrado Dorrio, Ana",null,{"$f":"AF6*0.1","v":0},null,{"$f":"AH6*0.1","v":0},null,{"$f":"AJ6*0.05","v":0},null,2,null,null,{"$f":"AO6*0.05","v":0},null,{"$f":"AQ6*0.02","v":0},null,{"$f":"AS6*0.03","v":0},null,{"$f":"AU6*0.05","v":0},null,2,null,0,{"$f":"IF(AZ6<5,\"INSUFICIENTE\",IF(AZ6<6,\"SUFICIENTE\",IF(AZ6<7,\"BIEN\",IF(AZ6<9,\"NOTABLE\",\"SOBRESALIENTE\"))))","v":"INSUFICIENTE"}]
[null,3,"Díaz-Caneja López, Nuria",null,0,null,0,null,0,null,0,null,0,null,0,null,3,"Díaz-Caneja López, Nuria",null,0,null,0,null,0,null,0,null,0,null,3,"Díaz-Caneja López, Nuria",null,0,null,0,null,0,null,3,null,null,0,null,0,null,0,null,0,null,3,null,0,"INSUFICIENTE"]
[null,4,"Esperante Rivas, Aarón",null,0,null,0,null,0,null,0,null,0,null,0,null,4,"Esperante Rivas, Aarón",null,0,null,0,null,0,null,0,null,0,null,4,"Esperante Rivas, Aarón",null,0,null,0,null,0,null,4,null,null,0,null,0,null,0,null,0,null,4,null,0,"INSUFICIENTE"]
[null,5,"Fernández Loureiro, Alejandro",null,0,null,0,null,0,null,0,null,0,null,0,null,5,"Fernández Loureiro, Alejandro",null,0,null,0,null,0,null,0,null,0,null,5,"Fernández Loureiro, Alejandro",null,0,null,0,null,0,null,5,null,null,0,null,0,null,0,null,0,null,5,null,0,"INSUFICIENTE"]
[null,{"$f":"B9+1","v":6},"García Prieto, Clara",null,0,null,0,null,0,null,0,null,0,null,0,null,{"$f":"Q9+1","v":6},"García Prieto, Clara",null,0,null,0,null,0,null,0,null,0,null,{"$f":"AD9+1","v":6},"García Prieto, Clara",null,0,null,0,null,0,null,{"$f":"AM9+1","v":6},null,null,0,null,0,null,0,null,0,null,{"$f":"AX9+1","v":6},null,0,"INSUFICIENTE"]
[null,{"$f":"B10+1","v":7},"García Vázquez, Jorge",null,0,null,0,null,0,null,0,null,0,null,0,null,{"$f":"Q10+1","v":7},"García Vázquez, Jorge",null,0,null,0,null,0,null,0,null,0,null,{"$f":"AD10+1","v":7},"García Vázquez, Jorge",null,0,null,0,null,0,null,{"$f":"AM10+1","v":7},null,null,0,null,0,null,0,null,0,null,{"$f":"AX10+1","v":7},null,0,"INSUFICIENTE"]
[null,8,"Gómez Budiño, Beatríz",null,0,null,0,null,0,null,0,null,0,null,0,null,8,"Gómez Budiño, Beatríz",null,0,null,0,null,0,null,0,null,0,null,8,"Gómez Budiño, Beatríz",null,0,null,0,null,0,null,8,null,null,0,null,0,null,0,null,0,null,8,null,0,"INSUFICIENTE"]
[null,9,"González Bedoya, Sofía",null,0,null,0,null,0,null,0,null,0,null,0,null,9,"González Bedoya, Sofía",null,0,null,0,null,0,null,0,null,0,null,9,"González Bedoya, Sofía",null,0,null,0,null,0,null,9,null,null,0,null,0,null,0,null,0,null,9,null,0,"INSUFICIENTE"]
[null,10,"Lage Fojo, Antón",null,0,null,0,null,0,null,0,null,0,null,0,null,10,"Lage Fojo, Antón",null,0,null,0,null,0,null,0,null,0,null,10,"Lage Fojo, Antón",null,0,null,0,null,0,null,10,null,null,0,null,0,null,0,null,0,null,10,null,0,"INSUFICIENTE"]
[null,11,"Lameiro Pena, Sergio",null,0,null,0,null,0,null,0,null,0,null,0,null,11,"Lameiro Pena, Sergio",null,0,null,0,null,0,null,0,null,0,null,11,"Lameiro Pena, Sergio",null,0,null,0,null,0,null,11,null,null,0,null,0,null,0,null,0,null,11,null,0,"INSUFICIENTE"]
[null,12,"Maneiros Rodríguez, Julia",null,0,null,0,null,0,null,0,null,0,null,0,null,12,"Maneiros Rodríguez, Julia",null,0,null,0,null,0,null,0,null,0,null,12,"Maneiros Rodríguez, Julia",null,0,null,0,null,0,null,12,null,null,0,null,0,null,0,null,0,null,12,null,0,"INSUFICIENTE"]
[null,13,"Paz Prieto, Lidia",null,0,null,0,null,0,null,0,null,0,null,0,null,13,"Paz Prieto, Lidia",null,0,null,0,null,0,null,0,null,0,null,13,"Paz Prieto, Lidia",null,0,null,0,null,0,null,13,null,null,0,null,0,null,0,null,0,null,13,null,0,"INSUFICIENTE"]
[null,14,"Porcel Cebreiro, Jaime",null,0,null,0,null,0,null,0,null,0,null,0,null,14,"Porcel Cebreiro, Jaime",null,0,null,0,null,0,null,0,null,0,null,14,"Porcel Cebreiro, Jaime",null,0,null,0,null,0,null,14,null,null,0,null,0,null,0,null,0,null,14,null,0,"INSUFICIENTE"]
[null,15,"Ramos Pérez, Nicolás",null,0,null,0,null,0,null,0,null,0,null,0,null,15,"Ramos Pérez, Nicolás",null,0,null,0,null,0,null,0,null,0,null,15,"Ramos Pérez, Nicolás",null,0,null,0,null,0,null,15,null,null,0,null,0,null,0,null,0,null,15,null,0,"INSUFICIENTE"]
[null,16,"Raña Ortega, Ashley",null,0,null,0,null,0,null,0,null,0,null,0,null,16,"Raña Ortega, Ashley",null,0,null,0,null,0,null,0,null,0,null,16,"Raña Ortega, Ashley",null,0,null,0,null,0,null,16,null,null,0,null,0,null,0,null,0,null,16,null,0,"INSUFICIENTE"]
[null,17,"Rey Martínez, Iván",null,0,null,0,null,0,null,0,null,0,null,0,null,17,"Rey Martínez, Iván",null,0,null,0,null,0,null,0,null,0,null,17,"Rey Martínez, Iván",null,0,null,0,null,0,null,17,null,null,0,null,0,null,0,null,0,null,17,null,0,"INSUFICIENTE"]
[null,18,"Rodríguez Bouza, Violeta",null,0,null,0,null,0,null,0,null,0,null,0,null,18,"Rodríguez Bouza, Violeta",null,0,null,0,null,0,null,0,null,0,null,18,"Rodríguez Bouza, Violeta",null,0,null,0,null,0,null,18,null,null,0,null,0,null,0,null,0,null,18,null,0,"INSUFICIENTE"]
[null,19,"Romero Manrubia, Juan",null,0,null,0,null,0,null,0,null,0,null,0,null,19,"Romero Manrubia, Juan",null,0,null,0,null,0,null,0,null,0,null,19,"Romero Manrubia, Juan",null,0,null,0,null,0,null,19,null,null,0,null,0,null,0,null,0,null,19,null,0,"INSUFICIENTE"]
[null,20,"Sánchez Barreiro, Gabriel",null,0,null,0,null,0,null,0,null,0,null,0,null,20,"Sánchez Barreiro, Gabriel",null,0,null,0,null,0,null,0,null,0,null,20,"Sánchez Barreiro, Gabriel",null,0,null,0,null,0,null,20,null,null,0,null,0,null,0,null,0,null,20,null,0,"INSUFICIENTE"]
[null,21,"Soto Rodríguez, Carlos",null,0,null,0,null,0,null,0,null,0,null,0,null,21,"Soto Rodríguez, Carlos",null,0,null,0,null,0,null,0,null,0,null,21,"Soto Rodríguez, Carlos",null,0,null,0,null,0,null,21,null,null,0,null,0,null,0,null,0,null,21,null,0,"INSUFICIENTE"]
[null,22,"Toimil Bouzón, Manuel",null,0,null,0,null,0,null,0,null,0,null,0,null,22,"Toimil Bouzón, Manuel",null,0,null,0,null,0,null,0,null,0,null,22,"Toimil Bouzón, Manuel",null,0,null,0,null,0,null,22,null,null,0,null,0,null,0,null,0,null,22,null,0,"INSUFICIENTE"]
[null,23,"Vázquez Linos, Mara",null,0,null,0,null,0,null,0,null,0,null,0,null,23,"Vázquez Linos, Mara",null,0,null,0,null,0,null,0,null,0,null,23,"Vázquez Linos, Mara",null,0,null,0,null,0,null,23,null,null,0,null,0,null,0,null,0,null,23,null,0,"INSUFICIENTE"]
[null,24,"Vidal Pérez, Antón Guillermo",null,0,null,0,null,0,null,0,null,0,null,0,null,24,"Vidal Pérez, Antón Guillermo",null,0,null,0,null,0,null,0,null,0,null,24,"Vidal Pérez, Antón Guillermo",null,0,null,0,null,0,null,24,null,null,0,null,0,null,0,null,0,null,24,null,0,"INSUFICIENTE"]
[null,25,"Villaverde Fernández, Alejandro",null,0,null,0,null,0,null,0,null,0,null,0,null,25,"Villaverde Fernández, Alejandro",null,0,null,0,null,0,null,0,null,0,null,25,"Villaverde Fernández, Alejandro",null,0,null,0,null,0,null,25,null,null,0,null,0,null,0,null,0,null,25,null,0,"INSUFICIENTE"]